{"text_format":"3","workbook":"xlsx","n_sheets":5,"sheets":["نظرة عامة على الحفل","قائمة الضيوف","الأطعمة والمشروبات","الأساسيات الأخرى","شبكة ترتيب الجلوس"],"not_rendered":{"defined_names":9},"read":"whole","date_system":"1900"}

{"sheet":"نظرة عامة على الحفل","index":0,"n_rows":21,"n_cols":8,"rows_kept":21,"merged":[[6,3,6,4],[6,5,6,6],[9,1,9,2]]}
[]
[]
[null,"نظرة عامة على الحفل"]
[]
[]
[null,"الحدث",null,"ملخص الضيوف",{"$nulls":3},{"$f":"\"الردود على الدعوات المعلقة:  \"&OutstandingRSVPs","v":"الردود على الدعوات المعلقة:  2"}]
[null,"عيد ميلاد الجدة الخامس والسبعين",null,"نظرة عامة للرد على الدعوة",null,"تكلفة الضيف",null,"مبلغ الميزانية"]
[{"$nulls":3},"الضيوف المؤكدين","الإجمالي المؤكد","الطعام","غير ذلك","الإجمالي"]
[null,"‎التاريخ",null,"البالغون",{"$f":"SUMIF(GuestTable[هل ستحضر؟],\"=نعم\",GuestTable[البالغون])","v":26},{"$f":"FoodTable[[#Totals],[تكلفة البالغ]]","v":{"v":12.690089084110037,"d":"12.69 ر.س.‏"}},{"$f":"EssentialCostPerGuest","v":{"v":18.695652173913043,"d":"18.70 ر.س.‏"}},{"$f":"(AttendeeSummary[[#This Row],[الطعام]]+AttendeeSummary[[#This Row],[غير ذلك]])*AdultTotal","v":{"v":816.0292727086002,"d":"816.03 ر.س.‏"}}]
[null,"2011-06-14",null,"الأطفال",{"$f":"SUMIF(GuestTable[هل ستحضر؟],\"=نعم\",GuestTable[الأطفال])","v":20},{"$f":"FoodTable[[#Totals],[تكلفة الطفل]]","v":{"v":7.252884190656953,"d":"7.25 ر.س.‏"}},{"$f":"EssentialCostPerGuest","v":{"v":18.695652173913043,"d":"18.70 ر.س.‏"}},{"$f":"(AttendeeSummary[[#This Row],[الطعام]]+AttendeeSummary[[#This Row],[غير ذلك]])*AdultTotal","v":{"v":674.6619454788199,"d":"674.66 ر.س.‏"}}]
[{"$nulls":3},"الإجمالي",{"$f":"SUBTOTAL(109,AttendeeSummary[الإجمالي المؤكد])","v":46},{"$f":"\"المتوسط  \"&TEXT(SUBTOTAL(101,AttendeeSummary[الطعام]),\"###0.00 ر.س.;[أحمر]( ###0.00 ر.س.)\")","v":"المتوسط  9.97 ر.س.‏"},{"$f":"\"المتوسط \"&TEXT(SUBTOTAL(101,AttendeeSummary[غير ذلك]),\"###0.00 ر.س.;[أحمر]( ###0.00 ر.س.)\")","v":"المتوسط 18.70 ر.س.‏"},{"$f":"SUBTOTAL(109,AttendeeSummary[الإجمالي])","v":{"v":1490.69121818742,"d":"1490.69 ر.س.‏"}}]
[null,"الوقت"]
[null,"من الساعة 2 م حتى 4 م"]
[]
[null,"الموقع",null,"ملخص الميزانية"]
[null,"منزل العمة جاكلين",null,"العنصر","العدد","مبلغ الميزانية","إجمالي التكلفة","الفرق"]
[{"$nulls":3},"الأطعمة والمشروبات",{"$f":"COUNTA(FoodTable[عنصر الأطعمة أو المشروبات])","v":18},{"v":500,"d":"500.00 ر.س.‏"},{"$f":"FoodTable[[#Totals],[إجمالي التكلفة]]","v":{"v":475,"d":"475.00 ر.س.‏"}},{"$f":"BudgetOverview[[#This Row],[مبلغ الميزانية]]-BudgetOverview[[#This Row],[إجمالي التكلفة]]","v":{"v":25,"d":"25.00 ر.س.‏"}}]
[{"$nulls":3},{"$f":"Table1Header","v":"المعدات والتجهيزات"},{"$f":"COUNTA(Table1Budget[المعدات والتجهيزات])","v":7},{"v":400,"d":"400.00 ر.س.‏"},{"$f":"Table1Budget[[#Totals],[التكلفة]]","v":{"v":400,"d":"400.00 ر.س.‏"}},{"$f":"BudgetOverview[[#This Row],[مبلغ الميزانية]]-BudgetOverview[[#This Row],[إجمالي التكلفة]]","v":{"v":0,"d":"0.00 ر.س.‏"}}]
[{"$nulls":3},{"$f":"Table2Header","v":"الزخارف"},4,{"v":150,"d":"150.00 ر.س.‏"},{"$f":"Table2Budget[[#Totals],[التكلفة]]","v":{"v":175,"d":"175.00 ر.س.‏"}},{"$f":"BudgetOverview[[#This Row],[مبلغ الميزانية]]-BudgetOverview[[#This Row],[إجمالي التكلفة]]","v":{"v":-25,"d":"( 25.00 ر.س.‏)"}}]
[{"$nulls":3},{"$f":"Table3Header","v":"غير ذلك"},{"$f":"COUNTA(Table3Budget[غير ذلك])","v":4},{"v":300,"d":"300.00 ر.س.‏"},{"$f":"Table3Budget[[#Totals],[التكلفة]]","v":{"v":285,"d":"285.00 ر.س.‏"}},{"$f":"BudgetOverview[[#This Row],[مبلغ الميزانية]]-BudgetOverview[[#This Row],[إجمالي التكلفة]]","v":{"v":15,"d":"15.00 ر.س.‏"}}]
[{"$nulls":3},"الإجمالي",{"$f":"SUBTOTAL(109,E17:E20)","v":33},{"$f":"SUBTOTAL(109,BudgetOverview[مبلغ الميزانية])","v":{"v":1350,"d":"1350.00 ر.س.‏"}},{"$f":"SUBTOTAL(109,BudgetOverview[إجمالي التكلفة])","v":{"v":1335,"d":"1335.00 ر.س.‏"}},{"$f":"BudgetOverview[[#Totals],[مبلغ الميزانية]]-BudgetOverview[[#Totals],[إجمالي التكلفة]]","v":{"v":15,"d":"15.00 ر.س.‏"}}]

{"sheet":"قائمة الضيوف","index":1,"n_rows":22,"n_cols":12,"rows_kept":22}
[]
[]
[null,"قائمة الضيوف"]
[]
[]
[]
[null,"الاسم","العنوان","المدينة","الولاية","الرمز البريدي","الهاتف","البريد الإلكتروني","هل ستحضر؟","الأطفال","البالغون","الإجمالي"]
[null,"الأسرة 1","العنوان 1","المدينة 1","الولاية 1","الرمز البريدي 1","الهاتف 1","البريد الإلكتروني 1","لا",2,2,{"$f":"SUM(GuestTable[[#This Row],[الأطفال]:[البالغون]])","v":4}]
[null,"الأسرة 2","العنوان 2","المدينة 2","الولاية 2","الرمز البريدي 2","الهاتف 2","البريد الإلكتروني 2","نعم",1,1,{"$f":"SUM(GuestTable[[#This Row],[الأطفال]:[البالغون]])","v":2}]
[null,"الأسرة 3","العنوان 3","المدينة 3","الولاية 3","الرمز البريدي 3","الهاتف 3","البريد الإلكتروني 3","نعم",3,3,{"$f":"SUM(GuestTable[[#This Row],[الأطفال]:[البالغون]])","v":6}]
[null,"الأسرة 4","العنوان 4","المدينة 4","الولاية 4","الرمز البريدي 4","الهاتف 4","البريد الإلكتروني 4",null,null,2,{"$f":"SUM(GuestTable[[#This Row],[الأطفال]:[البالغون]])","v":2}]
[null,"الأسرة 5","العنوان 5","المدينة 5","الولاية 5","الرمز البريدي 5","الهاتف 5","البريد الإلكتروني 5","نعم",4,3,{"$f":"SUM(GuestTable[[#This Row],[الأطفال]:[البالغون]])","v":7}]
[null,"الأسرة 6","العنوان 6","المدينة 6","الولاية 6","الرمز البريدي 6","الهاتف 6","البريد الإلكتروني 6","نعم",2,2,{"$f":"SUM(GuestTable[[#This Row],[الأطفال]:[البالغون]])","v":4}]
[null,"الأسرة 7","العنوان 7","المدينة 7","الولاية 7","الرمز البريدي 7","الهاتف 7","البريد الإلكتروني 7","نعم",1,4,{"$f":"SUM(GuestTable[[#This Row],[الأطفال]:[البالغون]])","v":5}]
[null,"الأسرة 8","العنوان 8","المدينة 8","الولاية 8","الرمز البريدي 8","الهاتف 8","البريد الإلكتروني 8","لا",5,3,{"$f":"SUM(GuestTable[[#This Row],[الأطفال]:[البالغون]])","v":8}]
[null,"الأسرة 9","العنوان 9","المدينة 9","الولاية 9","الرمز البريدي 9","الهاتف 9","البريد الإلكتروني 9","نعم",3,2,{"$f":"SUM(GuestTable[[#This Row],[الأطفال]:[البالغون]])","v":5}]
[null,"الأسرة 10","العنوان 10","المدينة 10","الولاية 10","الرمز البريدي 10","الهاتف 10","البريد الإلكتروني 10","نعم",null,4,{"$f":"SUM(GuestTable[[#This Row],[الأطفال]:[البالغون]])","v":4}]
[null,"الأسرة 11","العنوان 11","المدينة 11","الولاية 11","الرمز البريدي 11","الهاتف 11","البريد الإلكتروني 11","نعم",3,5,{"$f":"SUM(GuestTable[[#This Row],[الأطفال]:[البالغون]])","v":8}]
[null,"الأسرة 12","العنوان 12","المدينة 12","الولاية 12","الرمز البريدي 12","الهاتف 12","البريد الإلكتروني 12","لا",2,3,{"$f":"SUM(GuestTable[[#This Row],[الأطفال]:[البالغون]])","v":5}]
[null,"الأسرة 13","العنوان 13","المدينة 13","الولاية 13","الرمز البريدي 13","الهاتف 13","البريد الإلكتروني 13","نعم",3,2,{"$f":"SUM(GuestTable[[#This Row],[الأطفال]:[البالغون]])","v":5}]
[null,"الأسرة 14","العنوان 14","المدينة 14","الولاية 14","الرمز البريدي 14","الهاتف 14","البريد الإلكتروني 14","لا",null,1,{"$f":"SUM(GuestTable[[#This Row],[الأطفال]:[البالغون]])","v":1}]
[null,"الأسرة 15","العنوان 15","المدينة 15","الولاية 15","الرمز البريدي 15","الهاتف 15","البريد الإلكتروني 15",null,null,2,{"$f":"SUM(GuestTable[[#This Row],[الأطفال]:[البالغون]])","v":2}]

{"sheet":"الأطعمة والمشروبات","index":2,"n_rows":25,"n_cols":10,"rows_kept":25}
[]
[]
[null,"الأطعمة والمشروبات"]
[]
[null,"أدخل التكلفة والوجبات المقدرة لحساب إجمالي عدد قطع الوجبة وتكلفتها تلقائياً استناداً إلى إجمالي عدد الحضور"]
[null,"عنصر الأطعمة أو المشروبات","إجمالي التكلفة","وجبة الطفل","وجبة البالغ","إجمالي الوجبات","تكلفة الوجبة","تكلفة الطفل","تكلفة البالغ","ملاحظات"]
[null,"صودا",{"v":15,"d":"ر.س.‏ 15.00"},0.5,2,{"$f":"(FoodTable[[#This Row],[وجبة الطفل]]*ChildrenTotal)+(FoodTable[[#This Row],[وجبة البالغ]]*AdultTotal)","v":62},{"$f":"IFERROR(FoodTable[[#This Row],[إجمالي التكلفة]]/FoodTable[[#This Row],[إجمالي الوجبات]],\"\")","v":{"v":0.24193548387096775,"d":"ر.س.‏ 0.24"}},{"$f":"IFERROR(FoodTable[[#This Row],[تكلفة الوجبة]]*FoodTable[[#This Row],[وجبة الطفل]],\"\")","v":{"v":0.12096774193548387,"d":"ر.س.‏ 0.12"}},{"$f":"IFERROR(FoodTable[[#This Row],[تكلفة الوجبة]]*FoodTable[[#This Row],[وجبة البالغ]],\"\")","v":{"v":0.4838709677419355,"d":"ر.س.‏ 0.48"}},"زجاجات 2 لتر"]
[null,"علب العصير",{"v":15,"d":"ر.س.‏ 15.00"},2,0,{"$f":"(FoodTable[[#This Row],[وجبة الطفل]]*ChildrenTotal)+(FoodTable[[#This Row],[وجبة البالغ]]*AdultTotal)","v":40},{"$f":"IFERROR(FoodTable[[#This Row],[إجمالي التكلفة]]/FoodTable[[#This Row],[إجمالي الوجبات]],\"\")","v":{"v":0.375,"d":"ر.س.‏ 0.38"}},{"$f":"IFERROR(FoodTable[[#This Row],[تكلفة الوجبة]]*FoodTable[[#This Row],[وجبة الطفل]],\"\")","v":{"v":0.75,"d":"ر.س.‏ 0.75"}},{"$f":"IFERROR(FoodTable[[#This Row],[تكلفة الوجبة]]*FoodTable[[#This Row],[وجبة البالغ]],\"\")","v":{"v":0,"d":"ر.س.‏ 0.00"}},"التفاح والعنب الأبيض"]
[null,"مشروبات",{"v":50,"d":"ر.س.‏ 50.00"},0,2,{"$f":"(FoodTable[[#This Row],[وجبة الطفل]]*ChildrenTotal)+(FoodTable[[#This Row],[وجبة البالغ]]*AdultTotal)","v":52},{"$f":"IFERROR(FoodTable[[#This Row],[إجمالي التكلفة]]/FoodTable[[#This Row],[إجمالي الوجبات]],\"\")","v":{"v":0.9615384615384616,"d":"ر.س.‏ 0.96"}},{"$f":"IFERROR(FoodTable[[#This Row],[تكلفة الوجبة]]*FoodTable[[#This Row],[وجبة الطفل]],\"\")","v":{"v":0,"d":"ر.س.‏ 0.00"}},{"$f":"IFERROR(FoodTable[[#This Row],[تكلفة الوجبة]]*FoodTable[[#This Row],[وجبة البالغ]],\"\")","v":{"v":1.9230769230769231,"d":"ر.س.‏ 1.92"}}]
[null,"كعكة",{"v":75,"d":"ر.س.‏ 75.00"},1,1,{"$f":"(FoodTable[[#This Row],[وجبة الطفل]]*ChildrenTotal)+(FoodTable[[#This Row],[وجبة البالغ]]*AdultTotal)","v":46},{"$f":"IFERROR(FoodTable[[#This Row],[إجمالي التكلفة]]/FoodTable[[#This Row],[إجمالي الوجبات]],\"\")","v":{"v":1.6304347826086956,"d":"ر.س.‏ 1.63"}},{"$f":"IFERROR(FoodTable[[#This Row],[تكلفة الوجبة]]*FoodTable[[#This Row],[وجبة الطفل]],\"\")","v":{"v":1.6304347826086956,"d":"ر.س.‏ 1.63"}},{"$f":"IFERROR(FoodTable[[#This Row],[تكلفة الوجبة]]*FoodTable[[#This Row],[وجبة البالغ]],\"\")","v":{"v":1.6304347826086956,"d":"ر.س.‏ 1.63"}},"الطلب من مخبر محلي"]
[null,"أيس كريم",{"v":20,"d":"ر.س.‏ 20.00"},1,1.5,{"$f":"(FoodTable[[#This Row],[وجبة الطفل]]*ChildrenTotal)+(FoodTable[[#This Row],[وجبة البالغ]]*AdultTotal)","v":59},{"$f":"IFERROR(FoodTable[[#This Row],[إجمالي التكلفة]]/FoodTable[[#This Row],[إجمالي الوجبات]],\"\")","v":{"v":0.3389830508474576,"d":"ر.س.‏ 0.34"}},{"$f":"IFERROR(FoodTable[[#This Row],[تكلفة الوجبة]]*FoodTable[[#This Row],[وجبة الطفل]],\"\")","v":{"v":0.3389830508474576,"d":"ر.س.‏ 0.34"}},{"$f":"IFERROR(FoodTable[[#This Row],[تكلفة الوجبة]]*FoodTable[[#This Row],[وجبة البالغ]],\"\")","v":{"v":0.5084745762711864,"d":"ر.س.‏ 0.51"}}]
[null,"أكواب البودنغ",{"v":15,"d":"ر.س.‏ 15.00"},1,0,{"$f":"(FoodTable[[#This Row],[وجبة الطفل]]*ChildrenTotal)+(FoodTable[[#This Row],[وجبة البالغ]]*AdultTotal)","v":20},{"$f":"IFERROR(FoodTable[[#This Row],[إجمالي التكلفة]]/FoodTable[[#This Row],[إجمالي الوجبات]],\"\")","v":{"v":0.75,"d":"ر.س.‏ 0.75"}},{"$f":"IFERROR(FoodTable[[#This Row],[تكلفة الوجبة]]*FoodTable[[#This Row],[وجبة الطفل]],\"\")","v":{"v":0.75,"d":"ر.س.‏ 0.75"}},{"$f":"IFERROR(FoodTable[[#This Row],[تكلفة الوجبة]]*FoodTable[[#This Row],[وجبة البالغ]],\"\")","v":{"v":0,"d":"ر.س.‏ 0.00"}},"شراء الأكواب المعلبة: الفانيليا والشكولاتة"]
[null,"فطر محشو",{"v":32,"d":"ر.س.‏ 32.00"},1,2,{"$f":"(FoodTable[[#This Row],[وجبة الطفل]]*ChildrenTotal)+(FoodTable[[#This Row],[وجبة البالغ]]*AdultTotal)","v":72},{"$f":"IFERROR(FoodTable[[#This Row],[إجمالي التكلفة]]/FoodTable[[#This Row],[إجمالي الوجبات]],\"\")","v":{"v":0.4444444444444444,"d":"ر.س.‏ 0.44"}},{"$f":"IFERROR(FoodTable[[#This Row],[تكلفة الوجبة]]*FoodTable[[#This Row],[وجبة الطفل]],\"\")","v":{"v":0.4444444444444444,"d":"ر.س.‏ 0.44"}},{"$f":"IFERROR(FoodTable[[#This Row],[تكلفة الوجبة]]*FoodTable[[#This Row],[وجبة البالغ]],\"\")","v":{"v":0.8888888888888888,"d":"ر.س.‏ 0.89"}},"شطيرة الفطر المحشو بالجبن والنقانق"]
[null,"فطائر",{"v":22,"d":"ر.س.‏ 22.00"},0,3,{"$f":"(FoodTable[[#This Row],[وجبة الطفل]]*ChildrenTotal)+(FoodTable[[#This Row],[وجبة البالغ]]*AdultTotal)","v":78},{"$f":"IFERROR(FoodTable[[#This Row],[إجمالي التكلفة]]/FoodTable[[#This Row],[إجمالي الوجبات]],\"\")","v":{"v":0.28205128205128205,"d":"ر.س.‏ 0.28"}},{"$f":"IFERROR(FoodTable[[#This Row],[تكلفة الوجبة]]*FoodTable[[#This Row],[وجبة الطفل]],\"\")","v":{"v":0,"d":"ر.س.‏ 0.00"}},{"$f":"IFERROR(FoodTable[[#This Row],[تكلفة الوجبة]]*FoodTable[[#This Row],[وجبة البالغ]],\"\")","v":{"v":0.8461538461538461,"d":"ر.س.‏ 0.85"}},"الطماطم والريحان "]
[null,"سلمون مدخن",{"v":50,"d":"ر.س.‏ 50.00"},1,2,{"$f":"(FoodTable[[#This Row],[وجبة الطفل]]*ChildrenTotal)+(FoodTable[[#This Row],[وجبة البالغ]]*AdultTotal)","v":72},{"$f":"IFERROR(FoodTable[[#This Row],[إجمالي التكلفة]]/FoodTable[[#This Row],[إجمالي الوجبات]],\"\")","v":{"v":0.6944444444444444,"d":"ر.س.‏ 0.69"}},{"$f":"IFERROR(FoodTable[[#This Row],[تكلفة الوجبة]]*FoodTable[[#This Row],[وجبة الطفل]],\"\")","v":{"v":0.6944444444444444,"d":"ر.س.‏ 0.69"}},{"$f":"IFERROR(FoodTable[[#This Row],[تكلفة الوجبة]]*FoodTable[[#This Row],[وجبة البالغ]],\"\")","v":{"v":1.3888888888888888,"d":"ر.س.‏ 1.39"}}]
[null,"الكعك الصغير",{"v":20,"d":"ر.س.‏ 20.00"},1,2,{"$f":"(FoodTable[[#This Row],[وجبة الطفل]]*ChildrenTotal)+(FoodTable[[#This Row],[وجبة البالغ]]*AdultTotal)","v":72},{"$f":"IFERROR(FoodTable[[#This Row],[إجمالي التكلفة]]/FoodTable[[#This Row],[إجمالي الوجبات]],\"\")","v":{"v":0.2777777777777778,"d":"ر.س.‏ 0.28"}},{"$f":"IFERROR(FoodTable[[#This Row],[تكلفة الوجبة]]*FoodTable[[#This Row],[وجبة الطفل]],\"\")","v":{"v":0.2777777777777778,"d":"ر.س.‏ 0.28"}},{"$f":"IFERROR(FoodTable[[#This Row],[تكلفة الوجبة]]*FoodTable[[#This Row],[وجبة البالغ]],\"\")","v":{"v":0.5555555555555556,"d":"ر.س.‏ 0.56"}},"4 أكياس ـ متنوعة"]
[null,"جبن الكريمة",{"v":10,"d":"ر.س.‏ 10.00"},1,2,{"$f":"(FoodTable[[#This Row],[وجبة الطفل]]*ChildrenTotal)+(FoodTable[[#This Row],[وجبة البالغ]]*AdultTotal)","v":72},{"$f":"IFERROR(FoodTable[[#This Row],[إجمالي التكلفة]]/FoodTable[[#This Row],[إجمالي الوجبات]],\"\")","v":{"v":0.1388888888888889,"d":"ر.س.‏ 0.14"}},{"$f":"IFERROR(FoodTable[[#This Row],[تكلفة الوجبة]]*FoodTable[[#This Row],[وجبة الطفل]],\"\")","v":{"v":0.1388888888888889,"d":"ر.س.‏ 0.14"}},{"$f":"IFERROR(FoodTable[[#This Row],[تكلفة الوجبة]]*FoodTable[[#This Row],[وجبة البالغ]],\"\")","v":{"v":0.2777777777777778,"d":"ر.س.‏ 0.28"}},"أنبوبان كبيران"]
[null,"نبات الكبر",{"v":12,"d":"ر.س.‏ 12.00"},1,2,{"$f":"(FoodTable[[#This Row],[وجبة الطفل]]*ChildrenTotal)+(FoodTable[[#This Row],[وجبة البالغ]]*AdultTotal)","v":72},{"$f":"IFERROR(FoodTable[[#This Row],[إجمالي التكلفة]]/FoodTable[[#This Row],[إجمالي الوجبات]],\"\")","v":{"v":0.16666666666666666,"d":"ر.س.‏ 0.17"}},{"$f":"IFERROR(FoodTable[[#This Row],[تكلفة الوجبة]]*FoodTable[[#This Row],[وجبة الطفل]],\"\")","v":{"v":0.16666666666666666,"d":"ر.س.‏ 0.17"}},{"$f":"IFERROR(FoodTable[[#This Row],[تكلفة الوجبة]]*FoodTable[[#This Row],[وجبة البالغ]],\"\")","v":{"v":0.3333333333333333,"d":"ر.س.‏ 0.33"}},"3 مرطبانات"]
[null,"أجنحة الدجاج",{"v":45,"d":"ر.س.‏ 45.00"},2,4,{"$f":"(FoodTable[[#This Row],[وجبة الطفل]]*ChildrenTotal)+(FoodTable[[#This Row],[وجبة البالغ]]*AdultTotal)","v":144},{"$f":"IFERROR(FoodTable[[#This Row],[إجمالي التكلفة]]/FoodTable[[#This Row],[إجمالي الوجبات]],\"\")","v":{"v":0.3125,"d":"ر.س.‏ 0.31"}},{"$f":"IFERROR(FoodTable[[#This Row],[تكلفة الوجبة]]*FoodTable[[#This Row],[وجبة الطفل]],\"\")","v":{"v":0.625,"d":"ر.س.‏ 0.63"}},{"$f":"IFERROR(FoodTable[[#This Row],[تكلفة الوجبة]]*FoodTable[[#This Row],[وجبة البالغ]],\"\")","v":{"v":1.25,"d":"ر.س.‏ 1.25"}},"الشراء من متجر محلي لبيع الأجنحة"]
[null,"حمص",{"v":10,"d":"ر.س.‏ 10.00"},4,6,{"$f":"(FoodTable[[#This Row],[وجبة الطفل]]*ChildrenTotal)+(FoodTable[[#This Row],[وجبة البالغ]]*AdultTotal)","v":236},{"$f":"IFERROR(FoodTable[[#This Row],[إجمالي التكلفة]]/FoodTable[[#This Row],[إجمالي الوجبات]],\"\")","v":{"v":0.0423728813559322,"d":"ر.س.‏ 0.04"}},{"$f":"IFERROR(FoodTable[[#This Row],[تكلفة الوجبة]]*FoodTable[[#This Row],[وجبة الطفل]],\"\")","v":{"v":0.1694915254237288,"d":"ر.س.‏ 0.17"}},{"$f":"IFERROR(FoodTable[[#This Row],[تكلفة الوجبة]]*FoodTable[[#This Row],[وجبة البالغ]],\"\")","v":{"v":0.2542372881355932,"d":"ر.س.‏ 0.25"}},"التحضير في الليلة السابقة"]
[null,"رقائق الخبر بالجبن البارميزان",{"v":14,"d":"ر.س.‏ 14.00"},4,6,{"$f":"(FoodTable[[#This Row],[وجبة الطفل]]*ChildrenTotal)+(FoodTable[[#This Row],[وجبة البالغ]]*AdultTotal)","v":236},{"$f":"IFERROR(FoodTable[[#This Row],[إجمالي التكلفة]]/FoodTable[[#This Row],[إجمالي الوجبات]],\"\")","v":{"v":0.059322033898305086,"d":"ر.س.‏ 0.06"}},{"$f":"IFERROR(FoodTable[[#This Row],[تكلفة الوجبة]]*FoodTable[[#This Row],[وجبة الطفل]],\"\")","v":{"v":0.23728813559322035,"d":"ر.س.‏ 0.24"}},{"$f":"IFERROR(FoodTable[[#This Row],[تكلفة الوجبة]]*FoodTable[[#This Row],[وجبة البالغ]],\"\")","v":{"v":0.3559322033898305,"d":"ر.س.‏ 0.36"}},"التحضير في الليلة السابقة"]
[null,"خضروات متنوعة",{"v":30,"d":"ر.س.‏ 30.00"},4,10,{"$f":"(FoodTable[[#This Row],[وجبة الطفل]]*ChildrenTotal)+(FoodTable[[#This Row],[وجبة البالغ]]*AdultTotal)","v":340},{"$f":"IFERROR(FoodTable[[#This Row],[إجمالي التكلفة]]/FoodTable[[#This Row],[إجمالي الوجبات]],\"\")","v":{"v":0.08823529411764706,"d":"ر.س.‏ 0.09"}},{"$f":"IFERROR(FoodTable[[#This Row],[تكلفة الوجبة]]*FoodTable[[#This Row],[وجبة الطفل]],\"\")","v":{"v":0.35294117647058826,"d":"ر.س.‏ 0.35"}},{"$f":"IFERROR(FoodTable[[#This Row],[تكلفة الوجبة]]*FoodTable[[#This Row],[وجبة البالغ]],\"\")","v":{"v":0.8823529411764707,"d":"ر.س.‏ 0.88"}},"الجزر والكرفس والبروكلي والقرنبيط والفلفل الأحمر والأخضر"]
[null,"كرة الجبن",{"v":15,"d":"ر.س.‏ 15.00"},5,10,{"$f":"(FoodTable[[#This Row],[وجبة الطفل]]*ChildrenTotal)+(FoodTable[[#This Row],[وجبة البالغ]]*AdultTotal)","v":360},{"$f":"IFERROR(FoodTable[[#This Row],[إجمالي التكلفة]]/FoodTable[[#This Row],[إجمالي الوجبات]],\"\")","v":{"v":0.041666666666666664,"d":"ر.س.‏ 0.04"}},{"$f":"IFERROR(FoodTable[[#This Row],[تكلفة الوجبة]]*FoodTable[[#This Row],[وجبة الطفل]],\"\")","v":{"v":0.20833333333333331,"d":"ر.س.‏ 0.21"}},{"$f":"IFERROR(FoodTable[[#This Row],[تكلفة الوجبة]]*FoodTable[[#This Row],[وجبة البالغ]],\"\")","v":{"v":0.41666666666666663,"d":"ر.س.‏ 0.42"}},"متنوع: جبن الكريمة والجبن اللاذع بالمكسرات"]
[null,"الرقائق",{"v":25,"d":"ر.س.‏ 25.00"},5,10,{"$f":"(FoodTable[[#This Row],[وجبة الطفل]]*ChildrenTotal)+(FoodTable[[#This Row],[وجبة البالغ]]*AdultTotal)","v":360},{"$f":"IFERROR(FoodTable[[#This Row],[إجمالي التكلفة]]/FoodTable[[#This Row],[إجمالي الوجبات]],\"\")","v":{"v":0.06944444444444445,"d":"ر.س.‏ 0.07"}},{"$f":"IFERROR(FoodTable[[#This Row],[تكلفة الوجبة]]*FoodTable[[#This Row],[وجبة الطفل]],\"\")","v":{"v":0.3472222222222222,"d":"ر.س.‏ 0.35"}},{"$f":"IFERROR(FoodTable[[#This Row],[تكلفة الوجبة]]*FoodTable[[#This Row],[وجبة البالغ]],\"\")","v":{"v":0.6944444444444444,"d":"ر.س.‏ 0.69"}},"متنوعة"]
[null,"الإجمالي",{"$f":"SUBTOTAL(109,FoodTable[إجمالي التكلفة])","v":{"v":475,"d":"ر.س.‏ 475.00"}},{"$f":"SUBTOTAL(109,FoodTable[وجبة الطفل])","v":34.5},{"$f":"SUBTOTAL(109,FoodTable[وجبة البالغ])","v":65.5},{"$f":"SUBTOTAL(109,FoodTable[إجمالي الوجبات])","v":2393},{"$f":"SUBTOTAL(109,FoodTable[تكلفة الوجبة])","v":{"v":6.915706603622084,"d":"ر.س.‏ 6.92"}},{"$f":"SUBTOTAL(109,FoodTable[تكلفة الطفل])","v":{"v":7.252884190656953,"d":"ر.س.‏ 7.25"}},{"$f":"SUBTOTAL(109,FoodTable[تكلفة البالغ])","v":{"v":12.690089084110037,"d":"ر.س.‏ 12.69"}}]

{"sheet":"الأساسيات الأخرى","index":3,"n_rows":30,"n_cols":5,"rows_kept":30,"merged":[[14,1,14,4],[22,1,22,4]]}
[]
[]
[null,"الأساسيات الأخرى"]
[]
[]
[null,"المعدات والتجهيزات","التكلفة","مُشترى","ملاحظات"]
[null,"تأجير الغرف/القاعات",{"v":250,"d":"250.00 ر.س.‏"},"نعم"]
[null,"مفارش الموائد",{"v":30,"d":"30.00 ر.س.‏"},"نعم","الإيجار"]
[null,"الطاولات والكراسي",{"v":0,"d":"0.00 ر.س.‏"},null,"متضمنة في إيجار القاعة"]
[null,"مناديل",{"v":25,"d":"25.00 ر.س.‏"}]
[null,"مناديل السفرة",{"v":20,"d":"20.00 ر.س.‏"},null,"الإيجار"]
[null,"موظف الخدمة",{"v":50,"d":"50.00 ر.س.‏"},null,"الإيجار"]
[null,"آنية زجاجية",{"v":25,"d":"25.00 ر.س.‏"},null,"الإيجار"]
[null,"الإجمالي",{"$f":"SUBTOTAL(109,Table1Budget[التكلفة])","v":{"v":400,"d":"400.00 ر.س.‏"}}]
[]
[]
[null,"الزخارف","التكلفة","مُشترى","ملاحظات"]
[null,"بالونات",{"v":25,"d":"25.00 ر.س.‏"}]
[null,"خزان الهليوم",{"v":50,"d":"50.00 ر.س.‏"},null,"الإيجار"]
[null,"قطع تزين وسط الطاولة",{"v":100,"d":"100.00 ر.س.‏"},"نعم","إجمالي 10"]
[null,"مزهريات زجاجية",{"v":0,"d":"0.00 ر.س.‏"},null,"الاستعارة من جاكلين"]
[null,"الإجمالي",{"$f":"SUBTOTAL(109,Table2Budget[التكلفة])","v":{"v":175,"d":"175.00 ر.س.‏"}}]
[]
[]
[null,"غير ذلك","التكلفة","مُشترى","ملاحظات"]
[null,"دعوات",{"v":50,"d":"50.00 ر.س.‏"},"نعم"]
[null,"البريد",{"v":60,"d":"60.00 ر.س.‏"},"نعم"]
[null,"مصور",{"v":125,"d":"125.00 ر.س.‏"},null,"ساعتان (2 م ـ 4 م)"]
[null,"هدايا الحفل",{"v":50,"d":"50.00 ر.س.‏"}]
[null,"الإجمالي",{"$f":"SUBTOTAL(109,Table3Budget[التكلفة])","v":{"v":285,"d":"285.00 ر.س.‏"}}]

{"sheet":"شبكة ترتيب الجلوس","index":4,"n_rows":43,"n_cols":34,"rows_kept":43,"merged":[[35,0,35,17],[35,19,35,33]]}
["ترتيب الجلوس"]
{"$rows_empty":33}
[{"$nulls":33},"*1 مربع = 1 قدم مربع تقريباً"]
["ملاحظات",{"$nulls":18},{"$f":"\" إجمالي الضيوف المؤكدين:  \"&ConfirmedGuests","v":" إجمالي الضيوف المؤكدين:  46"}]
[{"$nulls":19},"يمكنك استخدام أي ترتيب من ترتيبات الطاولات التالية:"]
[{"$nulls":20},{"$f":"ROUNDUP(ConfirmedGuests/6,0)&\" طاولات دائرية 54 بوصة (6 مقاعد)\"","v":"8 طاولات دائرية 54 بوصة (6 مقاعد)"}]
[{"$nulls":20},{"$f":"ROUNDUP(ConfirmedGuests/8,0) &\"طاولات دائرية 60 بوصة (8 مقاعد)\"","v":"6طاولات دائرية 60 بوصة (8 مقاعد)"}]
[{"$nulls":20},{"$f":"ROUNDUP(ConfirmedGuests/10,0)&\" طاولات دائرية 72 بوصة (10 مقاعد)\"","v":"5 طاولات دائرية 72 بوصة (10 مقاعد)"}]
[{"$nulls":20},{"$f":"ROUNDUP(ConfirmedGuests/6,0)& \"طاولات مربعة 30 بوصة × 72 بوصة (6 مقاعد)\"","v":"8طاولات مربعة 30 بوصة × 72 بوصة (6 مقاعد)"}]
[{"$nulls":20},{"$f":"ROUNDUP(ConfirmedGuests/8,0)&\" طاولات مربعة 30 بوصة × 96 بوصة (8 مقاعد)\"","v":"6 طاولات مربعة 30 بوصة × 96 بوصة (8 مقاعد)"}]
[{"$nulls":19},"(المساحة المفضلة بين الطاولات: 42 بوصة)"]